{"text_format":"1","workbook":"xlsx","n_sheets":7,"sheets":["01","1","2","3","4","5","必ずお読み下さい"],"not_rendered":{"charts":0,"images":2,"macros":1,"external_links":0,"defined_names":0,"comments":6,"pivot_tables":0},"unopened":[],"bounds":{"document_bytes":16777216,"sheet_cells":100000,"rows_first":2000,"rows_last":500,"rows_between":2000,"halvings":0,"cell_chars":16384,"cell_head_chars":4096},"cells_cut":0,"cells_raw":0,"read":"whole","date_system":"1900"}

{"sheet":"01","index":0,"n_rows":64,"n_cols":52,"rows_kept":64,"cut":false,"hidden":false,"merged":[]}
[4,{"$f":"\"印刷枚数　\"&COUNTIF(A2:A1001,1)&\"まい\"","v":"印刷枚数　2まい"}]
[]
["見出し\n\n→",null,null,null,"氏名","敬称",null,null,"ふりがな",null,"住所1","住所2",null,null,null,"国","社","算","理","音","図","体",null,null,"身長","体重"]
["数式→",{"$f":"B$9","v":5},0,0,"石　田　　綾　子5","　様",0,0,"いしだ　あやこ5",0,"神戸市南灘区","西山町三ー一九ー一ー五一二","6580077",0,"5２3-3545",1,3,3,3,2,1,3,0,0,126.3,32.1,0,0,0,0,0,0,0,{"$f":"AH$9","v":0},0,0,0,0,0,0,0,0,0,0,0,0,0,0,0,0,0,0]
[1,1,null,null,"石　田　　綾　子1","　様",null,null,"いしだ　あやこ1",null,"神戸市西灘区","西山町三ー一九ー一ー五一二","6580073","ロイヤル西山","5２3-3541",2,3,3,3,3,3,3,null,null,123.5,31.3]
[null,2,null,null,"石　田　　綾　子2","　様",null,null,"いしだ　あやこ2",null,"神戸市西灘区","西山町三ー一九ー一ー五一二","6580074",null,"5２3-3542",3,3,3,2,2,3,2,null,null,124.2,31.5]
[null,3,null,null,"石　田　　綾　子3","　様",null,null,"いしだ　あやこ3",null,"神戸市南灘区","西山町三ー一九ー一ー五一二","6580075",null,"5２3-3543",3,2,3,1,2,3,1,null,null,124.9,31.7]
[1,4,null,null,"石　田　　綾　子4","　様",null,null,"いしだ　あやこ4",null,"神戸市西灘区","西山町三ー一九ー一ー五一二","6580076",null,"5２3-3544",2,2,3,3,1,2,2,null,null,125.6,31.9]
[null,5,null,null,"石　田　　綾　子5","　様",null,null,"いしだ　あやこ5",null,"神戸市南灘区","西山町三ー一九ー一ー五一二","6580077",null,"5２3-3545",1,3,3,3,2,1,3,null,null,126.3,32.1]
[null,6,null,null,"石　田　　綾　子6","　様",null,null,"いしだ　あやこ6",null,"神戸市南灘区","西山町三ー一九ー一ー五一二","6580078","ロイヤル西山","5２3-3546",2,2,2,3,1,3,2,null,null,127,32.299999999999997]
[null,7,null,null,"石　田　　綾　子7","　様",null,null,"いしだ　あやこ7",null,"神戸市西灘区","西山町三ー一九ー一ー五一二","6580079",null,"5２3-3547",3,2,3,2,2,2,1,null,null,127.7,32.5]
[null,8,null,null,"石　田　　綾　子8","　様",null,null,"いしだ　あやこ8",null,"神戸市南灘区","西山町三ー一九ー一ー五一二","6580080",null,"5２3-3548",3,1,3,2,2,3,2,null,null,128.4,32.700000000000003]
[null,9,null,null,"石　田　　綾　子9","　様",null,null,"いしだ　あやこ9",null,"神戸市西灘区","西山町三ー一九ー一ー五一二","6580081",null,"5２3-3549",3,3,3,1,1,2,3,null,null,129.1,32.9]
[null,10,null,null,"石　田　　綾　子10","　様",null,null,"いしだ　あやこ10",null,"神戸市西灘区","西山町三ー一九ー一ー五一二","6580082",null,"5２3-3550",3,3,2,2,3,3,3,null,null,129.80000000000001,33.1]
[null,11,null,null,"石　田　　綾　子11","　様",null,null,"いしだ　あやこ11"]
[null,12,null,null,"石　田　　綾　子12","　様",null,null,"いしだ　あやこ12"]
[null,13,null,null,"石　田　　綾　子13","　様",null,null,"いしだ　あやこ13"]
[null,14,null,null,"石　田　　綾　子14","　様",null,null,"いしだ　あやこ14"]
[null,15,null,null,"石　田　　綾　子15","　様",null,null,"いしだ　あやこ15"]
[null,16,null,null,"石　田　　綾　子16","　様",null,null,"いしだ　あやこ16"]
[null,17,null,null,"石　田　　綾　子17","　様",null,null,"いしだ　あやこ17"]
[null,18,null,null,"石　田　　綾　子18","　様",null,null,"いしだ　あやこ18"]
[null,19,null,null,"石　田　　綾　子19","　様",null,null,"いしだ　あやこ19"]
[null,20,null,null,"石　田　　綾　子20","　様",null,null,"いしだ　あやこ20"]
[null,21,null,null,"石　田　　綾　子21","　様",null,null,"いしだ　あやこ21"]
[null,22,null,null,"石　田　　綾　子22","　様",null,null,"いしだ　あやこ22"]
[null,23,null,null,"石　田　　綾　子23","　様",null,null,"いしだ　あやこ23"]
[null,24,null,null,"石　田　　綾　子24","　様",null,null,"いしだ　あやこ24"]
[null,25,null,null,"石　田　　綾　子25","　様",null,null,"いしだ　あやこ25"]
[null,26,null,null,"石　田　　綾　子26","　様",null,null,"いしだ　あやこ26"]
[null,27,null,null,"石　田　　綾　子27","　様",null,null,"いしだ　あやこ27"]
[null,28,null,null,"石　田　　綾　子28","　様",null,null,"いしだ　あやこ28"]
[null,29,null,null,"石　田　　綾　子29","　様",null,null,"いしだ　あやこ29"]
[null,30,null,null,"石　田　　綾　子30","　様",null,null,"いしだ　あやこ30"]
[null,31,null,null,"石　田　　綾　子31","　様",null,null,"いしだ　あやこ31"]
[null,32,null,null,"石　田　　綾　子32","　様",null,null,"いしだ　あやこ32"]
[null,33,null,null,"石　田　　綾　子33","　様",null,null,"いしだ　あやこ33"]
[null,34,null,null,"石　田　　綾　子34","　様",null,null,"いしだ　あやこ34"]
[null,35,null,null,"石　田　　綾　子35","　様",null,null,"いしだ　あやこ35"]
[null,36,null,null,"石　田　　綾　子36","　様",null,null,"いしだ　あやこ36"]
[null,37,null,null,"石　田　　綾　子37","　様",null,null,"いしだ　あやこ37"]
[null,38,null,null,"石　田　　綾　子38","　様",null,null,"いしだ　あやこ38"]
[null,39,null,null,"石　田　　綾　子39","　様",null,null,"いしだ　あやこ39"]
[null,40,null,null,"石　田　　綾　子40","　様",null,null,"いしだ　あやこ40"]
[null,41,null,null,"石　田　　綾　子41","　様",null,null,"いしだ　あやこ41"]
[null,42,null,null,"石　田　　綾　子42","　様",null,null,"いしだ　あやこ42"]
[null,43,null,null,"石　田　　綾　子43","　様",null,null,"いしだ　あやこ43"]
[null,44,null,null,"石　田　　綾　子44","　様",null,null,"いしだ　あやこ44"]
[null,45,null,null,"石　田　　綾　子45","　様",null,null,"いしだ　あやこ45"]
[null,46,null,null,"石　田　　綾　子46","　様",null,null,"いしだ　あやこ46"]
[null,47,null,null,"石　田　　綾　子47","　様",null,null,"いしだ　あやこ47"]
[null,48,null,null,"石　田　　綾　子48","　様",null,null,"いしだ　あやこ48"]
[null,49,null,null,"石　田　　綾　子49","　様",null,null,"いしだ　あやこ49"]
[null,50,null,null,"石　田　　綾　子50","　様",null,null,"いしだ　あやこ50"]
[null,51,null,null,"石　田　　綾　子51","　様",null,null,"いしだ　あやこ51"]
[null,52,null,null,"石　田　　綾　子52","　様",null,null,"いしだ　あやこ52"]
[null,53,null,null,"石　田　　綾　子53","　様",null,null,"いしだ　あやこ53"]
[null,54,null,null,"石　田　　綾　子54","　様",null,null,"いしだ　あやこ54"]
[null,55,null,null,"石　田　　綾　子55","　様",null,null,"いしだ　あやこ55"]
[null,56,null,null,"石　田　　綾　子56","　様",null,null,"いしだ　あやこ56"]
[null,57,null,null,"石　田　　綾　子57","　様",null,null,"いしだ　あやこ57"]
[null,58,null,null,"石　田　　綾　子58","　様",null,null,"いしだ　あやこ58"]
[null,59,null,null,"石　田　　綾　子59","　様",null,null,"いしだ　あやこ59"]
[null,60,null,null,"石　田　　綾　子60","　様",null,null,"いしだ　あやこ60"]

{"sheet":"1","index":1,"n_rows":27,"n_cols":218,"rows_kept":27,"cut":false,"hidden":false,"merged":[[11,217,16,221],[26,34,35,110],[0,1,6,28],[14,30,23,106],[0,30,6,106]]}
[1,{"$f":"IF('01'!M4>0,\"〒 \"&'01'!M4,\"\")","v":"〒 6580077"},null,null,null,null,null,null,null,null,null,null,null,null,null,null,null,null,null,null,null,null,null,null,null,null,null,null,null,null,{"$f":"'01'!L4","v":"西山町三ー一九ー一ー五一二"}]
[]
[]
[]
[]
[]
[]
[]
[]
[]
[]
[null,null,null,null,null,null,null,null,null,null,null,null,null,null,null,null,null,null,null,null,null,null,null,null,null,null,null,null,null,null,null,null,null,null,null,null,null,null,null,null,null,null,null,null,null,null,null,null,null,null,null,null,null,null,null,null,null,null,null,null,null,null,null,null,null,null,null,null,null,null,null,null,null,null,null,null,null,null,null,null,null,null,null,null,null,null,null,null,null,null,null,null,null,null,null,null,null,null,null,null,null,null,null,null,null,null,null,null,null,null,null,null,null,null,null,null,null,null,null,null,null,null,null,null,null,null,null,null,null,null,null,null,null,null,null,null,null,null,null,null,null,null,null,null,null,null,null,null,null,null,null,null,null,null,null,null,null,null,null,null,null,null,null,null,null,null,null,null,null,null,null,null,null,null,null,null,null,null,null,null,null,null,null,null,null,null,null,null,null,null,null,null,null,null,null,null,null,null,null,null,null,null,null,null,null,null,null,null,null,null,null,null,null,null,null,null,null,1]
[]
[]
[null,null,null,null,null,null,null,null,null,null,null,null,null,null,null,null,null,null,null,null,null,null,null,null,null,null,null,null,null,null,{"$f":"'01'!N4","v":0}]
[]
[]
[]
[]
[]
[]
[]
[]
[]
[]
[]
[null,null,null,null,null,null,null,null,null,null,null,null,null,null,null,null,null,null,null,null,null,null,null,null,null,null,null,null,null,null,null,null,null,null,{"$f":"'01'!E4&'01'!F4","v":"石　田　　綾　子5　様"}]

{"sheet":"2","index":2,"n_rows":23,"n_cols":218,"rows_kept":23,"cut":false,"hidden":false,"merged":[[22,23,91,31],[11,217,16,221],[22,32,91,38],[7,22,11,25],[7,27,11,30],[7,32,11,35],[7,38,11,41],[7,43,11,46],[7,48,11,51],[7,53,11,56],[22,14,91,22],[18,39,90,47],[18,48,90,56]]}
[2]
[]
[]
[]
[]
[]
[]
[null,null,null,null,null,null,null,null,null,null,null,null,null,null,null,null,null,null,null,null,null,null,{"$f":"MID('01'!M4,1,1)","v":"6"},null,null,null,null,{"$f":"MID('01'!M4,2,1)","v":"5"},null,null,null,null,{"$f":"MID('01'!M4,3,1)","v":"8"},null,null,null,null,null,{"$f":"MID('01'!M4,4,1)","v":"0"},null,null,null,null,{"$f":"MID('01'!M4,5,1)","v":"0"},null,null,null,null,{"$f":"MID('01'!M4,6,1)","v":"7"},null,null,null,null,{"$f":"MID('01'!M4,7,1)","v":"7"}]
[]
[]
[]
[null,null,null,null,null,null,null,null,null,null,null,null,null,null,null,null,null,null,null,null,null,null,null,null,null,null,null,null,null,null,null,null,null,null,null,null,null,null,null,null,null,null,null,null,null,null,null,null,null,null,null,null,null,null,null,null,null,null,null,null,null,null,null,null,null,null,null,null,null,null,null,null,null,null,null,null,null,null,null,null,null,null,null,null,null,null,null,null,null,null,null,null,null,null,null,null,null,null,null,null,null,null,null,null,null,null,null,null,null,null,null,null,null,null,null,null,null,null,null,null,null,null,null,null,null,null,null,null,null,null,null,null,null,null,null,null,null,null,null,null,null,null,null,null,null,null,null,null,null,null,null,null,null,null,null,null,null,null,null,null,null,null,null,null,null,null,null,null,null,null,null,null,null,null,null,null,null,null,null,null,null,null,null,null,null,null,null,null,null,null,null,null,null,null,null,null,null,null,null,null,null,null,null,null,null,null,null,null,null,null,null,null,null,null,null,null,null,8]
[]
[]
[]
[]
[]
[]
[null,null,null,null,null,null,null,null,null,null,null,null,null,null,null,null,null,null,null,null,null,null,null,null,null,null,null,null,null,null,null,null,null,null,null,null,null,null,null,{"$f":"'01'!L4","v":"西山町三ー一九ー一ー五一二"},null,null,null,null,null,null,null,null,{"$f":"'01'!K4","v":"神戸市南灘区"}]
[]
[]
[]
[null,null,null,null,null,null,null,null,null,null,null,null,null,null,null,null,null,null,null,null,null,null,null,{"$f":"'01'!E4&'01'!F4","v":"石　田　　綾　子5　様"}]

{"sheet":"3","index":3,"n_rows":68,"n_cols":218,"rows_kept":68,"cut":false,"hidden":false,"merged":[[11,217,16,221],[51,17,59,71]]}
[3]
[]
[]
[]
[]
[]
[]
[]
[]
[]
[]
[null,null,null,null,null,null,null,null,null,null,null,null,null,null,null,null,null,null,null,null,null,null,null,null,null,null,null,null,null,null,null,null,null,null,null,null,null,null,null,null,null,null,null,null,null,null,null,null,null,null,null,null,null,null,null,null,null,null,null,null,null,null,null,null,null,null,null,null,null,null,null,null,null,null,null,null,null,null,null,null,null,null,null,null,null,null,null,null,null,null,null,null,null,null,null,null,null,null,null,null,null,null,null,null,null,null,null,null,null,null,null,null,null,null,null,null,null,null,null,null,null,null,null,null,null,null,null,null,null,null,null,null,null,null,null,null,null,null,null,null,null,null,null,null,null,null,null,null,null,null,null,null,null,null,null,null,null,null,null,null,null,null,null,null,null,null,null,null,null,null,null,null,null,null,null,null,null,null,null,null,null,null,null,null,null,null,null,null,null,null,null,null,null,null,null,null,null,null,null,null,null,null,null,null,null,null,null,null,null,null,null,null,null,null,null,null,null,5]
[]
[]
[]
[]
[]
[]
[]
[]
[]
[]
[]
[]
[]
[]
[]
[]
[]
[]
[]
[]
[]
[]
[]
[]
[]
[]
[]
[]
[]
[]
[]
[]
[]
[]
[]
[]
[]
[]
[]
[null,null,null,null,null,null,null,null,null,null,null,null,null,null,null,null,null,{"$f":"'01'!I4","v":"いしだ　あやこ5"}]
[]
[]
[]
[]
[]
[]
[]
[]
[]
[]
[]
[]
[]
[]
[null,null,null,null,null,null,null,null,null,null,null,null,null,null,null,null,null,null,null,null,null,null,null,null,null,null,null,null,null,null,null,null,null,null,null,null,null,null,null,null,null,null,null,null,null,null,null,null,null,null,null,null,null,null,null,null,null,null,null,null,null,null,null,null,null,null,null,null,null,null,null,null,null,null,null,null,null,null,null,null,null,null,null,null,null,null,null,null,null,null,null,null,"国","社","算","理","音","図","体"]
[null,null,null,null,null,null,null,null,null,null,null,null,null,null,null,null,null,null,null,null,null,null,null,null,null,null,null,null,null,null,null,null,null,null,null,null,null,null,null,null,null,null,null,null,null,null,null,null,null,null,null,null,null,null,null,null,null,null,null,null,null,null,null,null,null,null,null,null,null,null,null,null,null,null,null,null,null,null,null,null,null,null,null,null,null,null,null,null,null,null,null,null,{"$f":"'01'!P4","v":1},{"$f":"'01'!Q4","v":3},{"$f":"'01'!R4","v":3},{"$f":"'01'!S4","v":3},{"$f":"'01'!T4","v":2},{"$f":"'01'!U4","v":1},{"$f":"'01'!V4","v":3}]

{"sheet":"4","index":4,"n_rows":53,"n_cols":218,"rows_kept":53,"cut":false,"hidden":false,"merged":[[11,217,16,221],[51,17,59,71],[52,80,59,89],[52,90,59,99],[52,100,59,109],[52,110,59,119]]}
[4]
[]
[]
[]
[]
[]
[]
[]
[]
[]
[]
[null,null,null,null,null,null,null,null,null,null,null,null,null,null,null,null,null,null,null,null,null,null,null,null,null,null,null,null,null,null,null,null,null,null,null,null,null,null,null,null,null,null,null,null,null,null,null,null,null,null,null,null,null,null,null,null,null,null,null,null,null,null,null,null,null,null,null,null,null,null,null,null,null,null,null,null,null,null,null,null,null,null,null,null,null,null,null,null,null,null,null,null,null,null,null,null,null,null,null,null,null,null,null,null,null,null,null,null,null,null,null,null,null,null,null,null,null,null,null,null,null,null,null,null,null,null,null,null,null,null,null,null,null,null,null,null,null,null,null,null,null,null,null,null,null,null,null,null,null,null,null,null,null,null,null,null,null,null,null,null,null,null,null,null,null,null,null,null,null,null,null,null,null,null,null,null,null,null,null,null,null,null,null,null,null,null,null,null,null,null,null,null,null,null,null,null,null,null,null,null,null,null,null,null,null,null,null,null,null,null,null,null,null,null,null,null,null,7]
[]
[]
[]
[]
[]
[]
[]
[]
[]
[]
[]
[]
[]
[]
[]
[]
[]
[]
[]
[]
[]
[]
[]
[]
[]
[]
[]
[]
[]
[]
[]
[]
[]
[]
[]
[]
[]
[]
[]
[null,null,null,null,null,null,null,null,null,null,null,null,null,null,null,null,null,{"$f":"'01'!E4","v":"石　田　　綾　子5"}]
[null,null,null,null,null,null,null,null,null,null,null,null,null,null,null,null,null,null,null,null,null,null,null,null,null,null,null,null,null,null,null,null,null,null,null,null,null,null,null,null,null,null,null,null,null,null,null,null,null,null,null,null,null,null,null,null,null,null,null,null,null,null,null,null,null,null,null,null,null,null,null,null,null,null,null,null,null,null,null,null,"身長",null,null,null,null,null,null,null,null,null,{"$f":"'01'!Y4","v":126.3},null,null,null,null,null,null,null,null,null,"体重",null,null,null,null,null,null,null,null,null,{"$f":"'01'!Z4","v":32.1}]

{"sheet":"5","index":5,"n_rows":20,"n_cols":218,"rows_kept":20,"cut":false,"hidden":false,"merged":[[11,217,16,221]]}
[5]
[]
[]
[]
[]
[]
[]
[]
[]
[]
[]
[null,null,null,null,null,null,null,null,null,null,null,null,null,null,null,null,null,null,null,null,null,null,null,null,null,null,null,null,null,null,null,null,null,null,null,null,null,null,null,null,null,null,null,null,null,null,null,null,null,null,null,null,null,null,null,null,null,null,null,null,null,null,null,null,null,null,null,null,null,null,null,null,null,null,null,null,null,null,null,null,null,null,null,null,null,null,null,null,null,null,null,null,null,null,null,null,null,null,null,null,null,null,null,null,null,null,null,null,null,null,null,null,null,null,null,null,null,null,null,null,null,null,null,null,null,null,null,null,null,null,null,null,null,null,null,null,null,null,null,null,null,null,null,null,null,null,null,null,null,null,null,null,null,null,null,null,null,null,null,null,null,null,null,null,null,null,null,null,null,null,null,null,null,null,null,null,null,null,null,null,null,null,null,null,null,null,null,null,null,null,null,null,null,null,null,null,null,null,null,null,null,null,null,null,null,null,null,null,null,null,null,null,null,null,null,null,null,5]
[]
[]
[]
[]
[]
[]
[]
[null,null,null,null,null,null,null,null,null,null,null,null,null,null,null,null,null,null,null,null,null,null,null,null,null,null,null,null,null,null,null,null,null,null,{"$f":"'01'!E4","v":"石　田　　綾　子5"}]

{"sheet":"必ずお読み下さい","index":6,"n_rows":41,"n_cols":2,"rows_kept":41,"cut":false,"hidden":false,"merged":[]}
["使用上の注意"]
["大元のファイルはコピーして使ってください。"]
["コピー再頒布等はご自由に。ご使用されるに当たって、不具合への対応等のメンテナンスはしかねます。"]
["500行目まで印刷ボタンを押すと自動で印刷するように作られています。それ以上は、別にもう一つファイルを作るなどして、500行目までにおさめるようにして印刷してください。"]
[]
[]
["説明","　※　管理者向けの説明は、青字で表示しています。"]
[]
["このファイルの仕組みを要約すると、①シート01の4行目の必要なデータをシート1～5にリンクをしてカード型の書式に印刷できるようにレイアウトしておき、②マクロでシート01の4行目に5行目以下の表型のデータを読み込むという感じです。"]
[]
["定型の個別表の書類やハガキなどに位置合わせをして印刷ができます。"]
["いくらか簡単なマクロ（プログラムのようなもの）を使っています。マクロは長いですが、比較的分かりやすいし、改良が可能な構造になっています。"]
["シート01に入れたデータをシート1～5で好きなレイアウトでリンクしてしまえば、様々なカード型の用紙にも印刷できます。"]
[]
["（1）　シート01のＡ列に「1」を入れると、その列のデータが印刷されます。"]
["（2）　シート01のA1のセルにどのシートを印刷するのか、番号を入力しておいてください。"]
[]
["シート01"]
["データを入れます。データはどのような並びで入れてもシート1～5でリンクをすれば大丈夫です。"]
["列の幅なども、適当に変えてもらって大丈夫です。"]
["A1のセルに1～5（増やした場合には増やしたシート名）を入れて、1～5のどのシートを印刷するかを決めます。"]
[]
["シート1～5"]
["シート1～5には、シート01のデータが反映されるようにしています。　→　自由にリンクを貼ってみてください。"]
["プリンタによって印刷位置が少々ずれます。微調整をしてお使いください。"]
[]
["各セルには　　='01'!N4　　といった数式が入っています。これは、「シート01のN列の4行目」を参照するという意味の式です。　つまり、各セルから、シート01の4行目（黄色の部分）を参照しています。"]
["とりあえず、シート1に学校用封筒、シート2にはがき等と設定しています。"]
["セルにリンクをはれば、様々なカードに対して自由に、任意の場所に印刷をできます。参考にしてみてください。"]
["行の高さや列の幅、セルの結合や結合したセルの位置は、自由に変更してもＯＫです。"]
["　　　→　列幅や行高を小さくしているのは、微妙なレイアウトを可能にするためです。適当に拡大・縮小・表示・非表示にしてください。"]
["A1から、GC168の範囲を印刷するように設定しています。要らない行は「非表示」にしてください。"]
["シート01以外は、削除してしまって、新しく作ってもＯＫです。"]
[]
["HJ12のセルに行の番号を入れ、となりのPボタンを押せば、1～50番目のデータまではプレビューできます。"]
[]
["縦書きで印字する際、アラビア数字データを漢数字に変換するためのマクロがありますので、お使いください。変換したい範囲を選択して、実行です。"]
[]
["もっと他のレイアウトのパターンが欲しければ、シート20まで自分で作ることができます。シート1～5をコピーしてシート名を6～20にしてください。その際には、A1のセルに必ずシートの番号と同じ数字を入れてください。たとえば「シート12」なら、「12」です。"]
[]
["文字の結合やIF文を使えば、色々な便利で細かい機能を付けられます。"]